[Event "Early-Titled-Tuesday-Blitz-May-07-2024"]
[Site "Chess.com"]
[Date "2024.05.07"]
[Round "3"]
[White "Chess4always"]
[Black "Tsyhanchuk_Stanislav"]
[Result "1-0"]
[WhiteElo "2034"]
[BlackElo "2343"]
[TimeControl "180+1"]
[EndTime "8:33:12 PDT"]
[Termination "Chess4always won by checkmate"]

1. d4 {[%clk 0:03:00.9]} 1... Nf6 {[%clk 0:02:58.4]} 2. Bg5 {[%clk 0:02:59.7]}
2... d5 {[%clk 0:02:57.2]} 3. Bxf6 {[%clk 0:02:59.8]} 3... exf6 {[%clk
0:02:58.1]} 4. c3 {[%clk 0:03:00.2]} 4... Bd6 {[%clk 0:02:57.2]} 5. Nd2 {[%clk
0:03:00.6]} 5... Bf5 {[%clk 0:02:56.7]} 6. g3 {[%clk 0:03:00.9]} 6... O-O {[%clk
0:02:55.6]} 7. Ngf3 {[%clk 0:03:01.4]} 7... Re8 {[%clk 0:02:47.4]} 8. e3 {[%clk
0:03:01.1]} 8... Nd7 {[%clk 0:02:43]} 9. Bg2 {[%clk 0:03:00.2]} 9... Bd3 {[%clk
0:02:38.7]} 10. Nb3 {[%clk 0:02:57.3]} 10... Bc4 {[%clk 0:02:35]} 11. Bf1 {[%clk
0:02:57]} 11... Bxf1 {[%clk 0:02:34]} 12. Kxf1 {[%clk 0:02:57.9]} 12... Nb6
{[%clk 0:02:29.9]} 13. Kg2 {[%clk 0:02:57.9]} 13... Qd7 {[%clk 0:02:24.3]} 14.
Nbd2 {[%clk 0:02:55.3]} 14... Rad8 {[%clk 0:02:05.9]} 15. Re1 {[%clk 0:02:52]}
15... f5 {[%clk 0:01:58.3]} 16. a4 {[%clk 0:02:49.2]} 16... Nc4 {[%clk
0:01:53.3]} 17. Nxc4 {[%clk 0:02:46.6]} 17... dxc4 {[%clk 0:01:54.2]} 18. Qc2
{[%clk 0:02:40.1]} 18... a5 {[%clk 0:01:41.8]} 19. Rad1 {[%clk 0:02:39.1]} 19...
Qe6 {[%clk 0:01:25.2]} 20. d5 {[%clk 0:02:37]} 20... Qe4 {[%clk 0:01:23.7]} 21.
Qxe4 {[%clk 0:02:36.7]} 21... fxe4 {[%clk 0:01:24.6]} 22. Nd2 {[%clk 0:02:34.2]}
22... Be5 {[%clk 0:01:12.7]} 23. Nxc4 {[%clk 0:02:33.3]} 23... b6 {[%clk
0:01:10]} 24. Nxe5 {[%clk 0:02:30.5]} 24... Rxe5 {[%clk 0:01:10.9]} 25. c4
{[%clk 0:02:31.1]} 25... Kf8 {[%clk 0:01:07.2]} 26. Rd4 {[%clk 0:02:30]} 26...
Ke7 {[%clk 0:01:05.6]} 27. Red1 {[%clk 0:02:30.4]} 27... Kd6 {[%clk 0:01:04.1]}
28. f4 {[%clk 0:02:12.4]} 28... exf3+ {[%clk 0:01:04.1]} 29. Kxf3 {[%clk
0:02:12.5]} 29... Rde8 {[%clk 0:01:04.1]} 30. R1d3 {[%clk 0:02:08.7]} 30... f6
{[%clk 0:00:57.7]} 31. Rh4 {[%clk 0:02:05.7]} 31... h6 {[%clk 0:00:55.6]} 32.
Rg4 {[%clk 0:02:03.7]} 32... R8e7 {[%clk 0:00:52.5]} 33. h4 {[%clk 0:02:02.9]}
33... f5 {[%clk 0:00:48.8]} 34. Rg6+ {[%clk 0:02:01]} 34... Kc5 {[%clk
0:00:45.7]} 35. b3 {[%clk 0:01:55.7]} 35... Kb4 {[%clk 0:00:34]} 36. Rc6 {[%clk
0:01:52.6]} 36... Re4 {[%clk 0:00:27.8]} 37. d6 {[%clk 0:01:49.4]} 37... cxd6
{[%clk 0:00:27.2]} 38. Rxb6+ {[%clk 0:01:46.8]} 38... Kc5 {[%clk 0:00:25.9]} 39.
Rb5+ {[%clk 0:01:37.2]} 39... Kc6 {[%clk 0:00:25.2]} 40. Rxf5 {[%clk 0:01:37]}
40... R4e5 {[%clk 0:00:20.6]} 41. Rf8 {[%clk 0:01:26.7]} 41... R5e6 {[%clk
0:00:18.3]} 42. Rc8+ {[%clk 0:01:24]} 42... Kb7 {[%clk 0:00:15.7]} 43. Rd8
{[%clk 0:01:22.7]} 43... Kc7 {[%clk 0:00:15.5]} 44. Ra8 {[%clk 0:01:22.8]} 44...
Kb6 {[%clk 0:00:14.7]} 45. Rc8 {[%clk 0:01:17]} 45... Kb7 {[%clk 0:00:13.8]} 46.
Rf8 {[%clk 0:01:16.8]} 46... Kc7 {[%clk 0:00:12.5]} 47. Rf5 {[%clk 0:01:17]}
47... Kb6 {[%clk 0:00:11.9]} 48. Rb5+ {[%clk 0:01:15.8]} 48... Ka6 {[%clk
0:00:11.7]} 49. Rbd5 {[%clk 0:01:16]} 49... Rd7 {[%clk 0:00:10.4]} 50. c5 {[%clk
0:01:14.8]} 50... Kb7 {[%clk 0:00:07.2]} 51. Rxd6 {[%clk 0:01:13.5]} 51... Rexd6
{[%clk 0:00:06.1]} 52. cxd6 {[%clk 0:01:11.6]} 52... Kc6 {[%clk 0:00:05.5]} 53.
e4 {[%clk 0:01:09.1]} 53... Rxd6 {[%clk 0:00:05.2]} 54. Rxd6+ {[%clk 0:01:08.7]}
54... Kxd6 {[%clk 0:00:06.1]} 55. Kf4 {[%clk 0:01:08.6]} 55... g6 {[%clk
0:00:01.2]} 56. g4 {[%clk 0:01:07.4]} 56... Ke6 {[%clk 0:00:01.5]} 57. h5 {[%clk
0:01:03.5]} 57... g5+ {[%clk 0:00:01.4]} 58. Kf3 {[%clk 0:01:03.6]} 58... Ke5
{[%clk 0:00:02]} 59. Ke3 {[%clk 0:01:04.1]} 59... Ke6 {[%clk 0:00:01.4]} 60. Kd4
{[%clk 0:01:04.7]} 60... Kd6 {[%clk 0:00:01.9]} 61. e5+ {[%clk 0:01:05.2]} 61...
Ke6 {[%clk 0:00:02.2]} 62. Ke4 {[%clk 0:01:05.7]} 62... Ke7 {[%clk 0:00:02.3]}
63. Kf5 {[%clk 0:01:06.3]} 63... Kf7 {[%clk 0:00:02.4]} 64. e6+ {[%clk
0:01:06.6]} 64... Ke7 {[%clk 0:00:03]} 65. Kg6 {[%clk 0:01:07.1]} 65... Kxe6
{[%clk 0:00:03.4]} 66. Kxh6 {[%clk 0:01:07.8]} 66... Kf6 {[%clk 0:00:03.8]} 67.
Kh7 {[%clk 0:00:51.4]} 67... Kf7 {[%clk 0:00:03.8]} 68. h6 {[%clk 0:00:50.2]}
68... Kf8 {[%clk 0:00:00.4]} 69. Kg6 {[%clk 0:00:50.1]} 69... Kg8 {[%clk
0:00:01.3]} 70. Kxg5 {[%clk 0:00:50.7]} 70... Kh8 {[%clk 0:00:01.7]} 71. Kg6
{[%clk 0:00:50.6]} 71... Kg8 {[%clk 0:00:02.6]} 72. g5 {[%clk 0:00:51.3]} 72...
Kh8 {[%clk 0:00:03.5]} 73. Kf6 {[%clk 0:00:51.8]} 73... Kg8 {[%clk 0:00:04.4]}
74. g6 {[%clk 0:00:52.5]} 74... Kh8 {[%clk 0:00:04.4]} 75. g7+ {[%clk
0:00:51.5]} 75... Kh7 {[%clk 0:00:05]} 76. Kf7 {[%clk 0:00:51.3]} 76... Kxh6
{[%clk 0:00:05.6]} 77. g8=Q {[%clk 0:00:51.9]} 77... Kh5 {[%clk 0:00:06]} 78.
Kf6 {[%clk 0:00:52.4]} 78... Kh4 {[%clk 0:00:06.6]} 79. Kf5 {[%clk 0:00:52.8]}
79... Kh3 {[%clk 0:00:07.1]} 80. Kf4 {[%clk 0:00:53.2]} 80... Kh4 {[%clk
0:00:08]} 81. Qh8# {[%clk 0:00:52]} 1-0

[Event "Early-Titled-Tuesday-Blitz-May-07-2024"]
[Site "Chess.com"]
[Date "2024.05.07"]
[Round "3"]
[White "Boundless_Strike"]
[Black "HouseOfDurin"]
[Result "1-0"]
[WhiteElo "2660"]
[BlackElo "2220"]
[TimeControl "180+1"]
[EndTime "8:33:13 PDT"]
[Termination "Boundless_Strike won by resignation"]

1. d4 {[%clk 0:03:00.9]} 1... Nf6 {[%clk 0:02:59.5]} 2. f3 {[%clk 0:03:00.6]}
2... c5 {[%clk 0:02:59]} 3. d5 {[%clk 0:02:57.7]} 3... b5 {[%clk 0:02:58.5]} 4.
e4 {[%clk 0:02:56.2]} 4... Qb6 {[%clk 0:02:44.1]} 5. c4 {[%clk 0:02:54]} 5...
bxc4 {[%clk 0:02:41.9]} 6. Nd2 {[%clk 0:02:32.9]} 6... Ba6 {[%clk 0:02:31.5]} 7.
Ne2 {[%clk 0:02:16]} 7... d6 {[%clk 0:02:23]} 8. Nc3 {[%clk 0:02:14.2]} 8...
Nbd7 {[%clk 0:02:21.4]} 9. Bxc4 {[%clk 0:02:04.6]} 9... g6 {[%clk 0:02:18.2]}
10. Qe2 {[%clk 0:01:49.4]} 10... Bxc4 {[%clk 0:02:10.2]} 11. Nxc4 {[%clk
0:01:49.4]} 11... Qa6 {[%clk 0:02:04.3]} 12. Bf4 {[%clk 0:01:35.5]} 12... Qb7
{[%clk 0:01:52.5]} 13. O-O {[%clk 0:01:24.5]} 13... Bg7 {[%clk 0:01:51.4]} 14.
Bxd6 {[%clk 0:01:21.1]} 14... Rc8 {[%clk 0:01:14.7]} 15. Bg3 {[%clk 0:00:32.8]}
15... O-O {[%clk 0:01:13.5]} 16. Na5 {[%clk 0:00:33]} 16... Qb6 {[%clk 0:01:00]}
17. Nc6 {[%clk 0:00:32.5]} 17... Rxc6 {[%clk 0:01:00.3]} 18. dxc6 {[%clk
0:00:32.5]} 18... Qxc6 {[%clk 0:01:01.2]} 19. Rad1 {[%clk 0:00:29.1]} 19... Nb6
{[%clk 0:01:01.1]} 20. Qb5 {[%clk 0:00:28.5]} 20... Qxb5 {[%clk 0:00:52.4]} 21.
Nxb5 {[%clk 0:00:28.4]} 21... Nc4 {[%clk 0:00:53.3]} 22. Rc1 {[%clk 0:00:21]}
22... Nxb2 {[%clk 0:00:52.1]} 23. Rxc5 {[%clk 0:00:20.5]} 23... a6 {[%clk
0:00:47.4]} 24. Nc7 {[%clk 0:00:18.2]} 24... Nxe4 {[%clk 0:00:46]} 25. fxe4
{[%clk 0:00:15.4]} 25... Bd4+ {[%clk 0:00:45.8]} 26. Bf2 {[%clk 0:00:15.7]}
26... Bxc5 {[%clk 0:00:46.1]} 27. Bxc5 {[%clk 0:00:15.5]} 27... Rc8 {[%clk
0:00:46.5]} 28. Nxa6 {[%clk 0:00:06.3]} 28... Nd3 {[%clk 0:00:37.7]} 29. Bxe7
{[%clk 0:00:04.6]} 29... Re8 {[%clk 0:00:21.5]} 30. Bf6 {[%clk 0:00:04.7]} 30...
Rxe4 {[%clk 0:00:20.7]} 31. Rd1 {[%clk 0:00:04.2]} 31... Re6 {[%clk 0:00:14.3]}
32. Rxd3 {[%clk 0:00:04.4]} 32... Rxf6 {[%clk 0:00:14.7]} 33. Nb4 {[%clk
0:00:04.7]} 33... Rb6 {[%clk 0:00:12.3]} 34. Rb3 {[%clk 0:00:05]} 34... Kg7
{[%clk 0:00:11.9]} 35. a4 {[%clk 0:00:05.4]} 35... h5 {[%clk 0:00:12.2]} 36. a5
{[%clk 0:00:05.9]} 36... Rb5 {[%clk 0:00:12.1]} 37. a6 {[%clk 0:00:06.5]} 37...
Ra5 {[%clk 0:00:12.4]} 38. Rc3 {[%clk 0:00:06.9]} 38... h4 {[%clk 0:00:10.8]}
39. h3 {[%clk 0:00:06.8]} 39... Ra4 {[%clk 0:00:10.7]} 40. Rc4 {[%clk
0:00:05.4]} 40... g5 {[%clk 0:00:11]} 41. Rd4 {[%clk 0:00:04.7]} 41... f5 {[%clk
0:00:10.9]} 42. Rc4 {[%clk 0:00:04.8]} 42... Kh6 {[%clk 0:00:10.9]} 43. Kf2
{[%clk 0:00:04.3]} 43... Kh5 {[%clk 0:00:11.2]} 44. Kf3 {[%clk 0:00:04.4]} 44...
Ra3+ {[%clk 0:00:09.7]} 45. Kf2 {[%clk 0:00:04.9]} 45... Ra4 {[%clk 0:00:10]}
46. Ke3 {[%clk 0:00:05]} 46... g4 {[%clk 0:00:09.2]} 47. hxg4+ {[%clk
0:00:05.3]} 47... fxg4 {[%clk 0:00:10.1]} 48. Rc5+ {[%clk 0:00:05.8]} 48... Kg6
{[%clk 0:00:09.9]} 49. Rb5 {[%clk 0:00:06.1]} 49... h3 {[%clk 0:00:09.6]} 50.
gxh3 {[%clk 0:00:06.7]} 50... gxh3 {[%clk 0:00:10.5]} 51. Kf2 {[%clk 0:00:06.9]}
51... Ra3 {[%clk 0:00:10]} 52. Kg1 {[%clk 0:00:06.4]} 52... Kf6 {[%clk
0:00:09.8]} 53. Kh2 {[%clk 0:00:06.3]} 53... Ke6 {[%clk 0:00:10.1]} 54. Rb7
{[%clk 0:00:06.3]} 54... Kd6 {[%clk 0:00:08.8]} 55. Rb5 {[%clk 0:00:04.9]} 55...
Ra4 {[%clk 0:00:07.7]} 56. Rb6+ {[%clk 0:00:03.5]} 56... Kc5 {[%clk 0:00:07.1]}
57. Rb7 {[%clk 0:00:04]} 57... Ra3 {[%clk 0:00:06.5]} 58. a7 {[%clk 0:00:03.3]}
58... Kc4 {[%clk 0:00:05.2]} 59. Nc6 {[%clk 0:00:02.5]} 59... Kd5 {[%clk
0:00:05.3]} 60. Rb8 {[%clk 0:00:02.6]} 60... Kxc6 {[%clk 0:00:05.2]} 61. a8=Q+
{[%clk 0:00:02.9]} 61... Rxa8 {[%clk 0:00:06.1]} 62. Rxa8 {[%clk 0:00:03.4]}
62... Kd5 {[%clk 0:00:07]} 63. Ra3 {[%clk 0:00:04]} 63... Ke4 {[%clk 0:00:07.9]}
64. Rxh3 {[%clk 0:00:04.7]} 64... Kf4 {[%clk 0:00:08.8]} 65. Rg3 {[%clk
0:00:05.3]} 65... Ke4 {[%clk 0:00:09.3]} 66. Kg2 {[%clk 0:00:06.2]} 66... Ke5
{[%clk 0:00:10.1]} 67. Kf2 {[%clk 0:00:07.1]} 67... Kf5 {[%clk 0:00:11]} 68.
Rf3+ {[%clk 0:00:07.6]} 68... Ke5 {[%clk 0:00:11.9]} 69. Ke3 {[%clk 0:00:08.3]}
69... Kd5 {[%clk 0:00:10.9]} 70. Rf4 {[%clk 0:00:09.2]} 1-0

[Event "Early-Titled-Tuesday-Blitz-May-07-2024"]
[Site "Chess.com"]
[Date "2024.05.07"]
[Round "3"]
[White "miaou33"]
[Black "Shield12"]
[Result "0-1"]
[WhiteElo "2542"]
[BlackElo "2999"]
[TimeControl "180+1"]
[EndTime "8:33:13 PDT"]
[Termination "Shield12 won by resignation"]

1. d4 {[%clk 0:03:00.9]} 1... g6 {[%clk 0:03:00.9]} 2. c4 {[%clk 0:02:56.6]}
2... Nf6 {[%clk 0:03:01.8]} 3. Nc3 {[%clk 0:02:56.2]} 3... d5 {[%clk 0:03:02.1]}
4. cxd5 {[%clk 0:02:56.1]} 4... Nxd5 {[%clk 0:03:03]} 5. e4 {[%clk 0:02:56.1]}
5... Nxc3 {[%clk 0:03:03.3]} 6. bxc3 {[%clk 0:02:57]} 6... Bg7 {[%clk
0:03:03.8]} 7. Nf3 {[%clk 0:02:57.6]} 7... c5 {[%clk 0:03:03.3]} 8. Rb1 {[%clk
0:02:53.8]} 8... O-O {[%clk 0:03:02.2]} 9. Be2 {[%clk 0:02:53.6]} 9... Nc6
{[%clk 0:02:58.7]} 10. d5 {[%clk 0:02:52.5]} 10... Ne5 {[%clk 0:02:56.2]} 11.
Nxe5 {[%clk 0:02:52]} 11... Bxe5 {[%clk 0:02:57.1]} 12. Qd2 {[%clk 0:02:52.7]}
12... e6 {[%clk 0:02:53.1]} 13. f4 {[%clk 0:02:51.5]} 13... Bc7 {[%clk
0:02:52.2]} 14. O-O {[%clk 0:02:48.9]} 14... exd5 {[%clk 0:02:51.2]} 15. exd5
{[%clk 0:02:48.9]} 15... Bd6 {[%clk 0:02:48.2]} 16. c4 {[%clk 0:02:45.2]} 16...
f6 {[%clk 0:02:37]} 17. f5 {[%clk 0:02:27.8]} 17... Qc7 {[%clk 0:02:27.6]} 18.
fxg6 {[%clk 0:02:25.1]} 18... hxg6 {[%clk 0:02:25.6]} 19. Qh6 {[%clk 0:02:21.2]}
19... Qh7 {[%clk 0:02:22]} 20. Qxh7+ {[%clk 0:02:16.8]} 20... Kxh7 {[%clk
0:02:22.9]} 21. Bd3 {[%clk 0:02:01.1]} 21... Be5 {[%clk 0:02:19.7]} 22. Bf4
{[%clk 0:01:53.5]} 22... Bd4+ {[%clk 0:02:12.6]} 23. Kh1 {[%clk 0:01:53.6]}
23... b6 {[%clk 0:02:07.6]} 24. Rbe1 {[%clk 0:01:52.5]} 24... Rf7 {[%clk
0:02:06]} 25. Be5 {[%clk 0:01:26.4]} 25... Bxe5 {[%clk 0:02:00.9]} 26. Rxe5
{[%clk 0:01:26]} 26... Bd7 {[%clk 0:01:56.1]} 27. Re3 {[%clk 0:01:25.6]} 27...
Re8 {[%clk 0:01:50.3]} 28. Rxe8 {[%clk 0:01:22.6]} 28... Bxe8 {[%clk 0:01:51.2]}
29. Re1 {[%clk 0:01:21.2]} 29... Bd7 {[%clk 0:01:51.5]} 30. g3 {[%clk
0:01:18.7]} 30... Kg7 {[%clk 0:01:51.5]} 31. Kg2 {[%clk 0:01:18.7]} 31... f5
{[%clk 0:01:52]} 32. Kf3 {[%clk 0:01:15.4]} 32... Kf6 {[%clk 0:01:51.7]} 33. h4
{[%clk 0:01:15.8]} 33... Rf8 {[%clk 0:01:48]} 34. Kf4 {[%clk 0:01:14]} 34... Rh8
{[%clk 0:01:45.7]} 35. a4 {[%clk 0:01:05.5]} 35... Re8 {[%clk 0:01:26]} 36. Rxe8
{[%clk 0:00:57.5]} 36... Bxe8 {[%clk 0:01:24.2]} 37. Bc2 {[%clk 0:00:54]} 37...
Bd7 {[%clk 0:01:23.2]} 38. Bd1 {[%clk 0:00:53]} 38... Bc8 {[%clk 0:01:22.6]} 39.
Bc2 {[%clk 0:00:53.2]} 39... Bb7 {[%clk 0:01:23]} 40. Bd1 {[%clk 0:00:46.3]}
40... Ba6 {[%clk 0:01:22.9]} 41. Be2 {[%clk 0:00:45.5]} 41... Bc8 {[%clk
0:01:20.2]} 42. Bd1 {[%clk 0:00:45.4]} 42... a6 {[%clk 0:01:16]} 43. Bc2 {[%clk
0:00:44.1]} 43... Bd7 {[%clk 0:01:15.7]} 44. Bd1 {[%clk 0:00:39.4]} 44... b5
{[%clk 0:01:15.4]} 45. cxb5 {[%clk 0:00:20.9]} 45... axb5 {[%clk 0:01:16.3]} 46.
axb5 {[%clk 0:00:21.2]} 46... Bxb5 {[%clk 0:01:17.2]} 47. Bc2 {[%clk 0:00:21.9]}
47... c4 {[%clk 0:01:14.1]} 48. g4 {[%clk 0:00:22.1]} 48... fxg4 {[%clk
0:01:10.5]} 49. Kxg4 {[%clk 0:00:23]} 49... Bd7+ {[%clk 0:00:53.3]} 50. Kf4
{[%clk 0:00:21.5]} 50... Bf5 {[%clk 0:00:45]} 51. Ba4 {[%clk 0:00:04.6]} 51...
c3 {[%clk 0:00:44.1]} 52. d6 {[%clk 0:00:04.8]} 52... Ke6 {[%clk 0:00:35.5]} 53.
d7 {[%clk 0:00:03.4]} 53... Ke7 {[%clk 0:00:36.4]} 54. h5 {[%clk 0:00:03.5]}
54... Bxd7 {[%clk 0:00:31.7]} 55. h6 {[%clk 0:00:02.2]} 55... Bxa4 {[%clk
0:00:20]} 56. h7 {[%clk 0:00:02.7]} 56... c2 {[%clk 0:00:19.6]} 57. h8=Q {[%clk
0:00:03.1]} 57... c1=Q+ {[%clk 0:00:20.5]} 58. Kg3 {[%clk 0:00:02.2]} 58... Qe3+
{[%clk 0:00:18.7]} 59. Kg2 {[%clk 0:00:01.8]} 59... Bc6+ {[%clk 0:00:18]} 60.
Kf1 {[%clk 0:00:02]} 60... Qf4+ {[%clk 0:00:11.5]} 61. Kg1 {[%clk 0:00:01.9]}
61... Qg5+ {[%clk 0:00:10.9]} 62. Kf1 {[%clk 0:00:02.4]} 62... Qf6+ {[%clk
0:00:11]} 0-1

[Event "Early-Titled-Tuesday-Blitz-May-07-2024"]
[Site "Chess.com"]
[Date "2024.05.07"]
[Round "3"]
[White "Statham_01"]
[Black "mishanick"]
[Result "1-0"]
[WhiteElo "2664"]
[BlackElo "3031"]
[TimeControl "180+1"]
[EndTime "8:33:16 PDT"]
[Termination "Statham_01 won by resignation"]

1. e4 {[%clk 0:03:00.9]} 1... c5 {[%clk 0:03:00.1]} 2. a3 {[%clk 0:03:00.3]}
2... Nc6 {[%clk 0:02:59.2]} 3. b4 {[%clk 0:03:00.1]} 3... Nf6 {[%clk 0:02:59.9]}
4. b5 {[%clk 0:02:57.3]} 4... Nd4 {[%clk 0:02:54.7]} 5. c3 {[%clk 0:02:48.6]}
5... Ne6 {[%clk 0:02:54.6]} 6. e5 {[%clk 0:02:48.1]} 6... Nd5 {[%clk 0:02:54.7]}
7. c4 {[%clk 0:02:36.2]} 7... Ndc7 {[%clk 0:02:54.6]} 8. f4 {[%clk 0:02:34.8]}
8... Nxf4 {[%clk 0:02:47.6]} 9. d4 {[%clk 0:02:32.3]} 9... Ng6 {[%clk
0:02:46.4]} 10. d5 {[%clk 0:02:08.3]} 10... Nxe5 {[%clk 0:02:45.7]} 11. Nf3
{[%clk 0:02:08.9]} 11... d6 {[%clk 0:02:28.2]} 12. Bb2 {[%clk 0:02:07.9]} 12...
Nxf3+ {[%clk 0:02:11.4]} 13. Qxf3 {[%clk 0:02:07.4]} 13... e5 {[%clk 0:02:12.1]}
14. dxe6 {[%clk 0:01:59.6]} 14... Nxe6 {[%clk 0:02:12.1]} 15. Bd3 {[%clk
0:01:56.7]} 15... Be7 {[%clk 0:01:45.5]} 16. O-O {[%clk 0:01:56]} 16... Bf6
{[%clk 0:01:45]} 17. Bxf6 {[%clk 0:01:02.7]} 17... Qxf6 {[%clk 0:01:45.9]} 18.
Qxf6 {[%clk 0:01:02.6]} 18... gxf6 {[%clk 0:01:46.8]} 19. Nc3 {[%clk 0:01:01.5]}
19... Nd4 {[%clk 0:01:02]} 20. Ne4 {[%clk 0:00:56.5]} 20... Ke7 {[%clk
0:00:49.8]} 21. Nxf6 {[%clk 0:00:47.4]} 21... Be6 {[%clk 0:00:49.9]} 22. Rae1
{[%clk 0:00:48]} 22... h5 {[%clk 0:00:48.9]} 23. Bf5 {[%clk 0:00:27.7]} 23...
Raf8 {[%clk 0:00:33.2]} 24. Be4 {[%clk 0:00:25]} 24... b6 {[%clk 0:00:29.3]} 25.
Bc6 {[%clk 0:00:20.9]} 25... Rh6 {[%clk 0:00:25.4]} 26. Nd5+ {[%clk 0:00:20.8]}
26... Kd8 {[%clk 0:00:25.6]} 27. a4 {[%clk 0:00:18.8]} 27... Bxd5 {[%clk
0:00:15.3]} 28. Bxd5 {[%clk 0:00:19.1]} 28... f5 {[%clk 0:00:11.3]} 29. a5
{[%clk 0:00:19.4]} 29... bxa5 {[%clk 0:00:08.6]} 30. Ra1 {[%clk 0:00:19.6]}
30... Rh7 {[%clk 0:00:04]} 31. Rxa5 {[%clk 0:00:19.3]} 31... Rd7 {[%clk
0:00:03.3]} 32. b6 {[%clk 0:00:18.1]} 32... Ne2+ {[%clk 0:00:01.7]} 33. Kf2
{[%clk 0:00:18.1]} 33... axb6 {[%clk 0:00:02.2]} 34. Ra8+ {[%clk 0:00:17.9]}
34... Ke7 {[%clk 0:00:02.9]} 35. Rxf8 {[%clk 0:00:18.3]} 35... Kxf8 {[%clk
0:00:03.6]} 36. Kxe2 {[%clk 0:00:19]} 36... Re7+ {[%clk 0:00:04.5]} 37. Kd3
{[%clk 0:00:19]} 37... Re5 {[%clk 0:00:05.2]} 38. Rb1 {[%clk 0:00:18.9]} 38...
f4 {[%clk 0:00:05.1]} 39. Rxb6 {[%clk 0:00:18.8]} 39... Re3+ {[%clk 0:00:05.8]}
40. Kd2 {[%clk 0:00:18.8]} 40... Ke7 {[%clk 0:00:06.5]} 41. Rb7+ {[%clk
0:00:19.3]} 41... Kf6 {[%clk 0:00:07.2]} 42. Rf7+ {[%clk 0:00:19.2]} 42... Kg5
{[%clk 0:00:07]} 43. Bf3 {[%clk 0:00:16.3]} 43... h4 {[%clk 0:00:06.7]} 44. Rd7
{[%clk 0:00:15.1]} 44... h3 {[%clk 0:00:06.1]} 45. Rxd6 {[%clk 0:00:13.4]} 45...
hxg2 {[%clk 0:00:06.3]} 46. Bxg2 {[%clk 0:00:14]} 46... Ra3 {[%clk 0:00:05.7]}
47. Rd5+ {[%clk 0:00:14.2]} 47... Kg4 {[%clk 0:00:05.6]} 48. Ke1 {[%clk
0:00:06.3]} 48... f3 {[%clk 0:00:04.3]} 49. h3+ {[%clk 0:00:04.6]} 49... Kg3
{[%clk 0:00:03]} 50. Bxf3 {[%clk 0:00:03.2]} 50... Kxf3 {[%clk 0:00:02.9]} 51.
Rxc5 {[%clk 0:00:03.8]} 51... Ra2 {[%clk 0:00:03.6]} 52. Rc8 {[%clk 0:00:03.5]}
52... Ke3 {[%clk 0:00:03.7]} 53. Kf1 {[%clk 0:00:03.2]} 53... Kf3 {[%clk
0:00:02.8]} 54. Rf8+ {[%clk 0:00:03.4]} 54... Kg3 {[%clk 0:00:03.4]} 55. c5
{[%clk 0:00:01.2]} 55... Rc2 {[%clk 0:00:03.9]} 56. Rc8 {[%clk 0:00:01.6]} 56...
Kf3 {[%clk 0:00:03.8]} 57. Ke1 {[%clk 0:00:02.3]} 57... Ke3 {[%clk 0:00:02.2]}
58. Kd1 {[%clk 0:00:02.7]} 58... Rc4 {[%clk 0:00:02.9]} 59. c6 {[%clk
0:00:03.2]} 59... Rd4+ {[%clk 0:00:01.4]} 60. Kc2 {[%clk 0:00:03.2]} 60... Rc4+
{[%clk 0:00:01.7]} 61. Kb3 {[%clk 0:00:03.6]} 61... Rc1 {[%clk 0:00:01.7]} 62.
c7 {[%clk 0:00:04.2]} 62... Kd4 {[%clk 0:00:02.2]} 63. Rd8+ {[%clk 0:00:04.7]}
63... Ke5 {[%clk 0:00:02.8]} 64. c8=Q {[%clk 0:00:05.4]} 64... Rxc8 {[%clk
0:00:03.6]} 65. Rxc8 {[%clk 0:00:06.3]} 1-0